fUSD/lending_fUSD_20250120
["ID","MTS","AMOUNT","RATE_DAILY","PERIOD"]
[349709905,1737389436830,-500.0,0.00020171,2]
[349709906,1737389436840,-500.0,0.00020171,2]
[349709907,1737389436849,-500.0,0.00020171,2]
[349709908,1737389436858,-500.0,0.00020171,2]
[349709909,1737389436867,-500.0,0.00020171,2]
[349709910,1737389436877,-500.0,0.00020171,2]
[349709911,1737389436887,-500.0,0.00020171,2]
[349709912,1737389436895,-500.0,0.00020171,2]
[349709913,1737389436905,-500.0,0.00020171,2]
[349709914,1737389436914,-500.0,0.00020171,2]
[349709915,1737389436923,-512.2650066,0.00020171,2]
[349709916,1737389436932,-500.0,0.00020171,2]
[349709917,1737389436942,-563.92,0.00020171,2]
[349709918,1737389436951,-599.2389588,0.00020171,2]
[349709919,1737389436960,-500.0,0.00020171,2]
[349709920,1737389436970,-500.0,0.00020171,2]
[349709921,1737389436985,-500.0,0.00020171,2]
[349709922,1737389436995,-500.0,0.00020171,2]
[349709923,1737389437006,-500.0,0.00020171,2]
[349709924,1737389437016,-500.0,0.00020171,2]
[349709925,1737389437026,-500.0,0.00020171,2]
[349709926,1737389437035,-500.0,0.00020171,2]
[349709927,1737389437045,-500.0,0.00020171,2]
[349709928,1737389437054,-916.04,0.00020171,2]
[349709929,1737389437063,-500.0,0.00020171,2]
[349709930,1737389437073,-500.0,0.00020171,2]
[349709931,1737389437083,-500.0,0.00020171,2]
[349709932,1737389437092,-500.0,0.00020171,2]
[349709933,1737389437102,-500.0,0.00020171,2]
[349709934,1737389437111,-199.58695179,0.00020171,2]
[349709935,1737389437121,-500.0,0.00020171,2]
[349709936,1737389437130,-500.0,0.00020171,2]
[349709937,1737389437139,-500.0,0.00020171,2]
[349709938,1737389437149,-500.0,0.00020171,2]
[349709939,1737389437158,-500.0,0.00020171,2]
[349709940,1737389437167,-500.0,0.00020171,2]
[349709941,1737389437177,-500.0,0.00020171,2]
[349709942,1737389437186,-500.0,0.00020171,2]
[349709943,1737389437196,-500.0,0.00020171,2]
[349709944,1737389437206,-500.0,0.00020171,2]
[349709945,1737389437215,-500.0,0.00020171,2]
[349709946,1737389437226,-500.0,0.00020171,2]
[349709947,1737389437235,-500.0,0.00020171,2]
[349709948,1737389437244,-500.0,0.00020171,2]
[349709949,1737389437253,-500.0,0.00020171,2]
[349709950,1737389437262,-500.0,0.00020171,2]
[349709951,1737389437271,-612.20015466,0.00020171,2]
[349709952,1737389437280,-500.0,0.00020171,2]
[349709953,1737389437290,-500.0,0.00020171,2]
[349709954,1737389437299,-500.0,0.00020171,2]
[349709955,1737389437308,-528.42159974,0.00020171,2]
[349709956,1737389437317,-394.40890062,0.00020171,2]
[349709957,1737389437326,-500.0,0.00020171,2]
[349709958,1737389437335,-500.0,0.00020171,2]
[349709959,1737389437344,-500.0,0.00020171,2]
[349709960,1737389437353,-500.0,0.00020171,2]
[349709961,1737389437362,-500.0,0.00020171,2]
[349709962,1737389437371,-974.36,0.00020171,2]
[349709963,1737389437382,-500.0,0.00020171,2]
[349709964,1737389437391,-500.0,0.00020171,2]
[349709965,1737389437400,-1870.7,0.00020171,2]
[349709966,1737389437410,-500.0,0.00020171,2]
[349709968,1737389437419,-500.0,0.00020171,2]
[349709970,1737389437429,-500.0,0.00020171,2]
[349709972,1737389437438,-500.0,0.00020171,2]
[349709974,1737389437447,-500.0,0.00020171,2]
[349709976,1737389437456,-500.0,0.00020171,2]
[349709978,1737389437465,-500.0,0.00020171,2]
[349709980,1737389437477,-500.0,0.00020171,2]
[349709982,1737389437487,-501.90929987,0.00020171,2]
[349709984,1737389437496,-503.96224883,0.00020171,2]
[349709986,1737389437505,-500.0,0.00020171,2]
[349709988,1737389437514,-500.0,0.00020171,2]
[349709990,1737389437524,-500.0,0.00020171,2]
[349709993,1737389437533,-500.0,0.00020171,2]
[349709995,1737389437543,-500.0,0.00020171,2]
[349709997,1737389437552,-1100.5,0.00020171,2]
[349709999,1737389437561,-500.0,0.00020171,2]
[349710002,1737389437570,-500.0,0.00020171,2]
[349710005,1737389437579,-500.0,0.00020171,2]
[349710007,1737389437589,-500.0,0.00020171,2]
[349710009,1737389437598,-500.0,0.00020171,2]
[349710011,1737389437607,-500.0,0.00020171,2]
[349710013,1737389437617,-678.08,0.00020172,2]
[349710015,1737389437627,-1014.81,0.00020172,2]
[349710017,1737389437638,-500.0,0.00020172,2]
[349710019,1737389437647,-1000.0,0.00020172,2]
[349710021,1737389437657,-976.23,0.00020172,2]
[349710023,1737389437667,-538.72,0.00020172,2]
[349710025,1737389437676,-1075.53,0.00020172,2]
[349710027,1737389437686,-1153.76,0.00020172,2]
[349710029,1737389437695,-500.0,0.00020172,2]
[349710031,1737389437705,-18404.3399,0.00020172,2]
[349710033,1737389437715,-1000.0,0.00020172,2]
[349710035,1737389437728,-433.5616,0.00020172,2]
[349710037,1737389437738,-500.0,0.00020172,2]
[349710039,1737389437747,-500.0,0.00020173,2]
[349710041,1737389437756,-500.0,0.00020173,2]
[349710043,1737389437765,-412.18993294,0.00020173,2]
[349710045,1737389437775,-500.0,0.00020173,2]
[349710047,1737389437784,-262.13869999,0.00020173,2]
[349710049,1737389437794,-294.22,0.00020173,2]
[349710051,1737389437803,-500.0,0.00020173,2]
[349710053,1737389437813,-500.0,0.00020173,2]
[349710055,1737389437824,-500.0,0.00020173,2]
[349710057,1737389437833,-500.0,0.00020173,2]
[349710059,1737389437843,-500.0,0.00020173,2]
[349710061,1737389437852,-500.0,0.00020173,2]
[349710063,1737389437862,-500.0,0.00020173,2]
[349710065,1737389437871,-500.0,0.00020173,2]
[349710067,1737389437881,-500.0,0.00020173,2]
[349710069,1737389437891,-500.0,0.00020173,2]
[349710071,1737389437900,-500.0,0.00020173,2]
[349710073,1737389437909,-595.63,0.00020173,2]
[349710075,1737389437919,-500.0,0.00020173,2]
[349710077,1737389437928,-500.0,0.00020173,2]
[349710079,1737389437938,-537.98,0.00020173,2]
[349710081,1737389437947,-500.0,0.00020173,2]
[349710100,1737389438116,-500.0,0.00020173,2]
[349710102,1737389438125,-500.0,0.00020173,2]
[349710104,1737389438135,-500.0,0.00020173,2]
[349710106,1737389438144,-500.0,0.00020173,2]
[349710108,1737389438154,-500.0,0.00020173,2]
[349710110,1737389438163,-500.0,0.00020173,2]
[349710112,1737389438172,-500.0,0.00020173,2]
[349710114,1737389438181,-500.0,0.00020173,2]
[349710116,1737389438190,-500.0,0.00020173,2]
[349710118,1737389438199,-500.0,0.00020173,2]
[349710120,1737389438209,-500.0,0.00020173,2]
[349710122,1737389438218,-500.0,0.00020173,2]
[349710124,1737389438229,-500.0,0.00020173,2]
[349710126,1737389438239,-500.0,0.00020173,2]
[349710128,1737389438248,-500.0,0.00020173,2]
[349710130,1737389438257,-500.0,0.00020173,2]
[349710132,1737389438267,-500.0,0.00020173,2]
[349710134,1737389438276,-500.0,0.00020173,2]
[349710136,1737389438286,-500.0,0.00020173,2]
[349710138,1737389438296,-500.0,0.00020173,2]
[349710140,1737389438305,-500.0,0.00020173,2]
[349710142,1737389438314,-500.0,0.00020173,2]
[349710144,1737389438323,-505.83,0.00020173,2]
[349710146,1737389438333,-500.0,0.00020173,2]
[349710148,1737389438342,-975.28116572,0.00020176,2]
[349710150,1737389438352,-2000.0,0.00020199,2]
[349710152,1737389438361,-200.0,0.00020199,2]
[349710154,1737389438370,-200.0,0.00020208,2]
[349710156,1737389438381,-975.28116572,0.00020245,2]
[349710158,1737389438390,-500.0,0.00020263,2]
[349710160,1737389438399,-500.0,0.00020263,2]
[349710162,1737389438409,-500.0,0.00020263,2]
[349710164,1737389438418,-579.67,0.00020263,2]
[349710166,1737389438427,-531.01,0.00020263,2]
[349710168,1737389438437,-500.0,0.00020263,2]
[349710170,1737389438447,-500.0,0.00020263,2]
[349710172,1737389438459,-712.92,0.00020263,2]
[349710174,1737389438469,-500.0,0.00020263,2]
[349710176,1737389438481,-500.0,0.00020263,2]
[349710178,1737389438491,-500.0,0.00020263,2]
[349710180,1737389438501,-500.0,0.00020263,2]
[349710182,1737389438510,-500.0,0.00020263,2]
[349710184,1737389438520,-500.0,0.00020263,2]
[349710186,1737389438529,-876.98,0.00020263,2]
[349710188,1737389438538,-1382.83,0.00020263,2]
[349710190,1737389438548,-500.0,0.00020263,2]
[349710192,1737389438557,-500.0,0.00020263,2]
[349710194,1737389438567,-500.0,0.00020263,2]
[349710196,1737389438576,-500.0,0.00020263,2]
[349710198,1737389438586,-753.98,0.00020263,2]
[349710200,1737389438595,-500.0,0.00020263,2]
[349710202,1737389438605,-500.0,0.00020263,2]
[349710204,1737389438615,-500.0,0.00020263,2]
[349710206,1737389438624,-500.0,0.00020263,2]
[349710208,1737389438633,-741.58,0.00020263,2]
[349710210,1737389438643,-500.0,0.00020263,2]
[349710212,1737389438657,-500.0,0.00020263,2]
[349710214,1737389438667,-500.0,0.00020263,2]
[349710216,1737389438676,-500.0,0.00020263,2]
[349710218,1737389438685,-500.0,0.00020263,2]
[349710220,1737389438694,-2982.66108838,0.00020266,2]
[349710222,1737389438703,-500.0,0.00020271,2]
[349710224,1737389438713,-500.0,0.00020271,7]
[349710226,1737389438724,-393.33322717,0.00020271,2]
[349710228,1737389438733,-500.0,0.00020271,2]
[349710230,1737389438743,-500.0,0.00020271,2]
[349710232,1737389438754,-500.0,0.00020271,2]
[349710234,1737389438763,-500.0,0.00020271,2]
[349710236,1737389438773,-359.68031992,0.00020271,2]
[349710238,1737389438782,-500.0,0.00020271,2]
[349710240,1737389438792,-500.0,0.00020271,2]
[349710242,1737389438801,-500.0,0.00020271,2]
[349710244,1737389438810,-500.0,0.00020271,2]
[349710246,1737389438821,-500.0,0.00020271,2]
[349710248,1737389438830,-501.01761524,0.00020271,2]
[349710250,1737389438840,-500.0,0.00020271,2]
[349710252,1737389438849,-169.11058787,0.00020271,2]
[349710254,1737389438858,-500.0,0.00020271,2]
[349710256,1737389438867,-500.0,0.00020271,2]
[349710257,1737389438876,-500.0,0.00020271,2]
[349710258,1737389438886,-500.0,0.00020271,2]
[349710259,1737389438896,-500.0,0.00020271,2]
[349710260,1737389438906,-500.0,0.00020271,2]
[349710261,1737389438915,-500.0,0.00020271,2]
[349710262,1737389438924,-500.0,0.00020271,2]
[349710263,1737389438934,-500.0,0.00020271,2]
[349710264,1737389438943,-500.0,0.00020271,2]
[349710265,1737389438952,-500.0,0.00020271,2]
[349710266,1737389438962,-428.80195845,0.00020271,2]
[349710268,1737389438971,-500.0,0.00020271,2]
[349710270,1737389438981,-500.0,0.00020271,2]
[349710272,1737389438990,-500.0,0.00020271,2]
[349710274,1737389439000,-500.0,0.00020271,2]
[349710276,1737389439011,-238.99232024,0.00020271,2]
[349710278,1737389439020,-500.0,0.00020271,2]
[349710280,1737389439029,-500.0,0.00020271,2]
[349710282,1737389439039,-858.76,0.00020271,2]
[349710284,1737389439048,-374.721516,0.00020271,2]
[349710286,1737389439057,-500.0,0.00020271,2]
[349710288,1737389439066,-500.0,0.00020271,2]
[349710290,1737389439076,-548.88,0.00020271,2]
[349710292,1737389439085,-500.0,0.00020271,2]
[349710294,1737389439094,-309.836744,0.00020271,2]
[349710296,1737389439104,-500.0,0.00020271,2]
[349710298,1737389439113,-500.0,0.00020271,2]
[349710300,1737389439122,-500.0,0.00020271,2]
[349710302,1737389439131,-500.0,0.00020271,2]
[349710304,1737389439141,-857.91,0.00020271,2]
[349710306,1737389439150,-1039.94,0.00020271,2]
[349710308,1737389439160,-886.58,0.00020271,2]
[349710310,1737389439169,-1019.8,0.00020271,2]
[349710312,1737389439178,-500.0,0.00020271,2]
[349710313,1737389439187,-1178.2,0.00020271,2]
[349710315,1737389439196,-500.0,0.00020271,2]
[349710317,1737389439206,-500.0,0.00020271,2]
[349710319,1737389439216,-686.0,0.00020271,2]
[349710321,1737389439227,-716.26,0.00020271,2]
[349710323,1737389439236,-500.0,0.00020271,2]
[349710325,1737389439248,-1409.72,0.00020271,2]
[349710328,1737389439258,-161.831666,0.00020271,2]
[349710330,1737389439267,-500.0,0.00020271,2]
[349710332,1737389439277,-500.0,0.00020271,2]
[349710334,1737389439285,-539.6,0.00020271,2]
[349710336,1737389439295,-500.0,0.00020271,2]
[349710338,1737389439309,-3327.54,0.00020271,2]
[349710340,1737389439319,-683.22,0.00020271,2]
[349710342,1737389439328,-500.0,0.00020271,2]
[349710344,1737389439337,-825.28,0.00020271,2]
[349710346,1737389439346,-500.0,0.00020271,2]
[349710348,1737389439356,-944.94,0.00020271,2]
[349710350,1737389439365,-1844.45,0.00020271,2]
[349710352,1737389439375,-975.28116572,0.00020314,2]
[349710354,1737389439386,-1474.35498025,0.00020342,2]
[349710356,1737389439395,-600.0,0.00020356,2]
[349710357,1737389439404,-500.0,0.00020356,2]
[349710359,1737389439413,-975.28116572,0.00020383,2]
[349710361,1737389439422,-2000.0,0.00020401,2]
[349710364,1737389439435,-200.0,0.00020401,2]
[349710366,1737389439445,-174.72,0.00020406,2]
[349710368,1737389439454,-500.0,0.00020444,2]
[349710370,1737389439463,-511.09,0.00020444,2]
[349710372,1737389439472,-500.0,0.00020444,2]
[349710374,1737389439484,-500.0,0.00020444,2]
[349710376,1737389439493,-500.0,0.00020444,2]
[349710378,1737389439502,-500.0,0.00020444,2]
[349710380,1737389439512,-500.0,0.00020444,2]
[349710382,1737389439522,-500.0,0.00020444,2]
[349710384,1737389439531,-500.0,0.00020444,2]
[349710386,1737389439541,-500.0,0.00020444,2]
[349710387,1737389439551,-353.45771763,0.00020444,2]
[349710390,1737389439560,-500.0,0.00020444,2]
[349710393,1737389439569,-500.0,0.00020444,2]
[349710395,1737389439578,-500.0,0.00020444,2]
[349710397,1737389439588,-500.0,0.00020444,2]
[349710399,1737389439598,-500.0,0.00020444,2]
[349710401,1737389439607,-595.28929476,0.00020444,2]
[349710403,1737389439616,-500.0,0.00020444,2]
[349710406,1737389439628,-500.0,0.00020444,2]
[349710409,1737389439639,-500.0,0.00020444,2]
[349710411,1737389439649,-500.0,0.00020444,2]
[349710414,1737389439658,-500.0,0.00020444,2]
[349710416,1737389439668,-500.0,0.00020444,2]
[349710419,1737389439679,-251.11858889,0.00020444,2]
[349710421,1737389439688,-500.0,0.00020444,2]
[349710423,1737389439697,-537.3,0.00020444,2]
[349710425,1737389439707,-500.0,0.00020444,2]
[349710427,1737389439717,-500.0,0.00020444,2]
[349710430,1737389439729,-500.0,0.00020444,2]
[349710432,1737389439740,-625.91017664,0.00020444,2]
[349710434,1737389439749,-500.0,0.00020444,2]
[349710436,1737389439759,-500.0,0.00020444,2]
[349710438,1737389439768,-500.0,0.00020444,2]
[349710440,1737389439777,-508.81496983,0.00020444,2]
[349710442,1737389439786,-500.0,0.00020444,2]
[349710444,1737389439795,-500.0,0.00020444,2]
[349710446,1737389439804,-500.0,0.00020444,2]
[349710448,1737389439813,-500.0,0.00020444,2]
[349710450,1737389439823,-500.0,0.00020444,2]
[349710452,1737389439833,-500.0,0.00020444,2]
[349710454,1737389439842,-500.0,0.00020444,2]
[349710456,1737389439851,-500.0,0.00020444,2]
[349710458,1737389439860,-139344.59278146,0.00020444,2]
[349710477,1737389440041,-387.0,0.00020444,2]
[349710479,1737389440052,-28189.30749243,0.00020444,2]
[349710481,1737389440061,-254.29592886,0.00020445,2]
[349710483,1737389440070,-290.46039634,0.00020445,2]
[349710485,1737389440079,-453.60712258,0.00020445,2]
[349710487,1737389440088,-500.0,0.00020445,2]
[349710489,1737389440096,-199.8199488,0.00020445,2]
[349710491,1737389440105,-547.72,0.00020445,2]
[349710493,1737389440114,-500.0,0.00020445,2]
[349710495,1737389440123,-500.0,0.00020445,2]
[349710496,1737389440132,-500.0,0.00020445,2]
[349710498,1737389440141,-253.20241375,0.00020445,2]
[349710500,1737389440150,-500.0,0.00020445,2]
[349710502,1737389440159,-500.0,0.00020445,2]
[349710504,1737389440168,-500.0,0.00020445,2]
[349710506,1737389440177,-500.0,0.00020445,2]
[349710508,1737389440186,-500.0,0.00020445,2]
[349710510,1737389440195,-500.0,0.00020445,2]
[349710512,1737389440204,-593.43,0.00020445,2]
[349710514,1737389440213,-500.0,0.00020445,2]
[349710516,1737389440222,-500.0,0.00020445,2]
[349710518,1737389440231,-453.77,0.00020445,2]
[349710520,1737389440240,-500.0,0.00020445,2]
[349710522,1737389440249,-500.0,0.00020445,2]
[349710524,1737389440258,-500.0,0.00020445,2]
[349710526,1737389440267,-500.0,0.00020445,2]
[349710528,1737389440277,-500.0,0.00020445,2]
[349710530,1737389440286,-500.0,0.00020445,2]
[349710531,1737389440295,-500.0,0.00020445,2]
[349710532,1737389440303,-500.0,0.00020445,2]
[349710533,1737389440312,-546.17,0.00020445,2]
[349710534,1737389440321,-500.0,0.00020445,2]
[349710536,1737389440372,-500.0,0.00020445,2]
[349710539,1737389440385,-500.0,0.00020445,2]
[349710540,1737389440394,-228.30177319,0.00020445,2]
[349710542,1737389440403,-500.0,0.00020445,2]
[349710544,1737389440413,-500.0,0.00020445,2]
[349710546,1737389440422,-512.69627195,0.00020445,2]
[349710548,1737389440431,-505.18,0.00020445,2]
[349710550,1737389440440,-500.0,0.00020445,2]
[349710552,1737389440449,-500.0,0.00020445,2]
[349710554,1737389440458,-500.0,0.00020445,2]
[349710556,1737389440467,-496.85141069,0.00020445,2]
[349710558,1737389440476,-500.0,0.00020445,2]
[349710560,1737389440486,-381.14479947,0.00020445,2]
[349710562,1737389440495,-500.0,0.00020445,2]
[349710564,1737389440504,-1532.67,0.00020445,2]
[349710566,1737389440516,-523.94573234,0.00020445,2]
[349710568,1737389440525,-500.0,0.00020445,2]
[349710570,1737389440534,-500.0,0.00020445,2]
[349710572,1737389440543,-569.94,0.00020445,2]
[349710574,1737389440553,-267.4867096,0.00020445,2]
[349710578,1737389440573,-232.5132904,0.00020445,2]
[349710580,1737389440582,-500.0,0.00020445,2]
[349710582,1737389440592,-512.33,0.00020445,2]
[349710584,1737389440601,-517.26360986,0.00020445,2]
[349710586,1737389440611,-621.4,0.00020445,2]
[349710588,1737389440620,-500.0,0.00020445,2]
[349710589,1737389440630,-500.0,0.00020445,2]
[349710591,1737389440639,-500.0,0.00020445,2]
[349710593,1737389440649,-522.92,0.00020445,2]
[349710595,1737389440660,-500.0,0.00020445,2]
[349710597,1737389440669,-500.0,0.00020445,2]
[349710599,1737389440678,-500.0,0.00020445,2]
[349710601,1737389440686,-500.0,0.00020445,2]
[349710603,1737389440695,-590.85,0.00020445,2]
[349710605,1737389440704,-500.0,0.00020445,2]
[349710607,1737389440713,-500.0,0.00020445,2]
[349710609,1737389440722,-500.0,0.00020445,2]
[349710611,1737389440731,-563.92,0.00020445,2]
[349710613,1737389440740,-500.0,0.00020445,2]
[349710615,1737389440750,-500.0,0.00020445,2]
[349710617,1737389440759,-500.0,0.00020445,2]
[349710619,1737389440770,-500.0,0.00020445,2]
[349710621,1737389440779,-500.0,0.00020445,2]
[349710623,1737389440788,-500.0,0.00020445,2]
[349710625,1737389440800,-500.0,0.00020445,2]
[349710627,1737389440809,-916.04,0.00020445,2]
[349710630,1737389440818,-500.0,0.00020445,2]
[349710631,1737389440827,-500.0,0.00020445,2]
[349710633,1737389440836,-500.0,0.00020445,2]
[349710635,1737389440845,-500.0,0.00020445,2]
[349710637,1737389440854,-500.0,0.00020445,2]
[349710639,1737389440863,-500.0,0.00020445,2]
[349710641,1737389440874,-500.0,0.00020445,2]
[349710643,1737389440883,-500.0,0.00020445,2]
[349710645,1737389440892,-500.0,0.00020445,2]
[349710647,1737389440901,-500.0,0.00020445,2]
[349710649,1737389440912,-500.0,0.00020445,2]
[349710651,1737389440921,-500.0,0.00020445,2]
[349710653,1737389440931,-500.0,0.00020445,2]
[349710655,1737389440940,-500.0,0.00020445,2]
[349710657,1737389440950,-500.0,0.00020445,2]
[349710659,1737389440959,-500.0,0.00020445,2]
[349710660,1737389440967,-606.47,0.00020445,2]
[349710661,1737389440983,-500.0,0.00020445,2]
[349710662,1737389440992,-500.0,0.00020445,2]
[349710663,1737389441001,-500.0,0.00020445,2]
[349710664,1737389441010,-500.0,0.00020445,2]
[349710665,1737389441019,-500.0,0.00020445,2]
[349710666,1737389441028,-500.0,0.00020445,2]
[349710667,1737389441037,-500.0,0.00020445,2]
[349710668,1737389441046,-974.36,0.00020445,2]
[349710670,1737389441055,-500.0,0.00020445,2]
[349710672,1737389441065,-500.0,0.00020445,2]
[349710674,1737389441075,-1870.7,0.00020445,2]
[349710676,1737389441085,-500.0,0.00020445,2]
[349710678,1737389441095,-500.0,0.00020445,2]
[349710680,1737389441104,-500.0,0.00020445,2]
[349710682,1737389441114,-500.0,0.00020445,2]
[349710684,1737389441123,-500.0,0.00020445,2]
[349710686,1737389441133,-500.0,0.00020445,2]
[349710688,1737389441142,-504.84,0.00020445,2]
[349710690,1737389441151,-500.0,0.00020445,2]
[349710692,1737389441160,-500.0,0.00020445,2]
[349710694,1737389441169,-500.0,0.00020445,2]
[349710696,1737389441179,-1100.5,0.00020445,2]
[349710698,1737389441188,-500.0,0.00020445,2]
[349710700,1737389441197,-500.0,0.00020445,2]
[349710702,1737389441206,-500.0,0.00020445,2]
[349710704,1737389441215,-500.0,0.00020445,2]
[349710706,1737389441224,-500.0,0.00020445,2]
[349710708,1737389441233,-500.0,0.00020445,2]
[349710710,1737389441242,-500.0,0.00020446,2]
[349710712,1737389441252,-678.08,0.00020446,2]
[349710714,1737389441261,-1014.81,0.00020446,2]
[349710716,1737389441270,-500.0,0.00020446,2]
[349710718,1737389441280,-1000.0,0.00020446,2]
[349710720,1737389441289,-976.23,0.00020446,2]
[349710722,1737389441298,-538.72,0.00020446,2]
[349710724,1737389441308,-1075.53,0.00020446,2]
[349710726,1737389441317,-1153.76,0.00020446,2]
[349710728,1737389441326,-500.0,0.00020446,2]
[349710730,1737389441336,-500.0,0.00020447,2]
[349710732,1737389441345,-500.0,0.00020447,2]
[349710734,1737389441354,-466.97045016,0.00020447,2]
[349710736,1737389441363,-500.0,0.00020447,2]
[349710738,1737389441372,-500.0,0.00020447,2]
[349710740,1737389441382,-500.0,0.00020447,2]
[349710742,1737389441391,-500.0,0.00020447,2]
[349710744,1737389441400,-216.92,0.00020447,2]
[349710746,1737389441409,-500.0,0.00020447,2]
[349710748,1737389441418,-500.0,0.00020447,2]
[349710750,1737389441427,-500.0,0.00020447,2]
[349710752,1737389441436,-532.47,0.00020447,2]
[349710754,1737389441445,-500.0,0.00020447,2]
[349710756,1737389441454,-500.0,0.00020447,2]
[349710758,1737389441463,-500.0,0.00020447,2]
[349710760,1737389441472,-535.98547637,0.00020447,2]
[349710762,1737389441482,-500.0,0.00020447,2]
[349710764,1737389441491,-500.0,0.00020447,2]
[349710766,1737389441500,-559.27,0.00020447,2]
[349710768,1737389441509,-500.0,0.00020447,2]
[349710770,1737389441520,-500.0,0.00020447,2]
[349710772,1737389441529,-500.0,0.00020447,2]
[349710774,1737389441539,-500.0,0.00020447,2]
[349710776,1737389441548,-500.0,0.00020447,2]
[349710778,1737389441557,-500.0,0.00020447,2]
[349710780,1737389441566,-500.0,0.00020447,2]
[349710782,1737389441576,-500.0,0.00020447,2]
[349710784,1737389441585,-500.0,0.00020447,2]
[349710786,1737389441595,-500.0,0.00020447,2]
[349710788,1737389441604,-600.60975776,0.00020447,2]
[349710790,1737389441613,-500.0,0.00020447,2]
[349710792,1737389441623,-500.0,0.00020447,2]
[349710794,1737389441632,-500.0,0.00020447,2]
[349710796,1737389441643,-500.0,0.00020447,2]
[349710798,1737389441652,-505.83,0.00020447,2]
[349710800,1737389441662,-500.0,0.00020447,2]
[349710802,1737389441671,-975.28116572,0.00020452,2]
[349710804,1737389441681,-500.0,0.00020473,2]
[349710806,1737389441691,-2982.66108838,0.00020499,2]
[349710808,1737389441700,-975.28116572,0.00020521,2]
[349710810,1737389441709,-512.49654467,0.0002053,2]
[349710812,1737389441718,-500.0,0.00020537,2]
[349710814,1737389441728,-500.0,0.00020537,2]
[349710816,1737389441737,-500.0,0.00020537,2]
[349710818,1737389441747,-579.67,0.00020537,2]
[349710821,1737389441756,-531.01,0.00020537,2]
[349710823,1737389441766,-500.0,0.00020537,2]
[349710825,1737389441775,-500.0,0.00020537,2]
[349710827,1737389441784,-712.92,0.00020537,2]
[349710829,1737389441801,-500.0,0.00020537,2]
[349710832,1737389441813,-500.0,0.00020537,2]
[349710834,1737389441823,-500.0,0.00020537,2]
[349710836,1737389441833,-500.0,0.00020537,2]
[349710838,1737389441842,-500.0,0.00020537,2]
[349710840,1737389441853,-500.0,0.00020537,2]
[349710842,1737389441863,-876.98,0.00020537,2]
[349710844,1737389441873,-1382.83,0.00020537,2]
[349710846,1737389441883,-500.0,0.00020537,2]
[349710848,1737389441893,-569.63,0.00020537,2]
[349710851,1737389441903,-403.13,0.00020537,2]
[349710853,1737389441914,-632.8,0.00020537,2]
[349710855,1737389441926,-753.98,0.00020537,2]
[349710857,1737389441937,-500.0,0.00020537,2]
[349710859,1737389441947,-500.0,0.00020537,2]
[349710861,1737389441957,-500.0,0.00020537,2]
[349710863,1737389441966,-741.58,0.00020537,2]
[349710865,1737389441978,-500.0,0.00020537,2]